bitfinex-derivatives/quotes_ETHF0:USTF0_20251003
["timestamp","ask_amount","ask_price","bid_price","bid_amount"]
[1759511499383,0.237,4517.0,4516.1,2.1899]
[1759511499587,2.86148457,4516.7,4516.1,0.237]
[1759511499789,2.86148457,4516.2,4516.1,2.4269]
[1759511499985,0.237,4517.0,4516.1,2.4269]
[1759511500185,0.00252844,4517.2,4516.6,3.2078]
[1759511500391,0.00252844,4517.2,4517.1,5.3977]
[1759511500593,0.00252844,4517.2,4517.1,10.6347]
[1759511501587,0.00252844,4517.2,4517.1,10.3977]
[1759511501794,0.00252844,4517.2,4517.1,5.6347]
[1759511501984,0.00252844,4517.2,4517.1,10.6347]
[1759511502391,0.00252844,4517.2,4517.1,5.6347]
[1759511502989,0.00252844,4517.2,4517.1,5.3977]
[1759511503193,0.00252844,4517.2,4517.1,5.6347]
[1759511503493,0.00252844,4517.2,4517.1,5.3977]
[1759511504001,0.00252844,4517.2,4517.1,5.6347]
[1759511504388,0.00252844,4517.2,4517.1,6.0329]
[1759511504588,0.00252844,4517.2,4517.1,11.0329]
[1759511505898,0.00252844,4517.2,4517.1,5.6347]
[1759511506087,0.00252844,4517.2,4517.1,5.3977]
[1759511506291,3.2078,4518.7,4518.2,0.3981]
[1759511506492,3.2078,4519.2,4518.6,0.39807]
[1759511506695,0.39803,4519.0,4518.7,0.237]
[1759511506891,2.1572,4519.1,4518.7,0.237]
[1759511507296,2.1572,4519.1,4518.1,3.2078]
[1759511507297,2.1572,4518.8,4518.5,0.39807]
[1759511507599,2.86887332,4519.1,4517.9,0.99533]
[1759511507600,0.00227004,4519.1,4518.8,0.39805]
[1759511507800,0.00227004,4519.1,4518.9,0.63504]
[1759511508101,2.85404574,4519.0,4518.9,0.63504]
[1759511508294,2.85404574,4519.0,4518.9,2.82494]
[1759511508502,0.00227004,4519.1,4519.0,2.1899]
[1759511510100,2.1572,4518.8,4518.6,3.2078]
[1759511510304,2.1572,4518.7,4518.6,3.2078]
[1759511510501,2.1572,4518.7,4518.4,0.237]
[1759511510502,3.21914106,4518.7,4518.4,0.237]
[1759511510705,2.82108106,4518.7,4518.3,0.237]
[1759511510901,2.82108106,4518.7,4518.4,0.237]
[1759511511101,0.00227004,4519.1,4519.0,2.58793]
[1759511511302,4e-08,4519.1,4519.0,6.88213]
[1759511511502,2.1572,4520.4,4519.6,2.1899]
[1759511511703,2.1572,4520.4,4519.7,0.63497]
[1759511512003,2.87253762,4520.3,4519.9,0.39795]
[1759511512207,2.1572,4520.2,4520.0,0.39794]
[1759511512407,0.00224083,4520.2,4520.0,0.40018649]
[1759511512603,2.28364548,4520.1,4520.0,5.79788649]
[1759511512802,0.00224083,4520.2,4520.0,5.79788649]
[1759511513008,0.00224083,4520.2,4520.1,2.1899]
[1759511514003,2.83237314,4520.2,4520.1,2.4269]
[1759511514602,2.83237314,4520.2,4520.0,3.21004649]
[1759511514798,2.1572,4520.1,4520.0,0.00224649]
[1759511515004,2.1572,4519.4,4518.6,0.78830946]
[1759511515304,4.99949273,4519.3,4518.4,3.2078]
[1759511515502,4.99949273,4519.3,4518.5,2.1899]
[1759511515709,3.29807302,4519.4,4518.9,0.39804]
[1759511515903,2.90007302,4519.2,4519.0,0.63503]
[1759511516104,2.1572,4519.1,4519.0,0.237]
[1759511516314,3.4448,4519.9,4519.0,0.237]
[1759511516315,2.90007302,4519.3,4519.1,2.58793]
[1759511516511,2.1572,4519.7,4519.0,0.237]
[1759511516712,2.88029992,4519.8,4519.5,0.39799]
[1759511516907,5.03749992,4519.6,4519.5,0.39799]
[1759511517108,3.2078,4519.9,4519.6,0.39798]
[1759511517304,2.88029992,4519.8,4519.6,0.39798]
[1759511517504,3.2078,4519.9,4519.4,0.39799]
[1759511517702,2.55517,4519.8,4519.5,0.237]
[1759511517904,2.55517,4519.8,4518.9,3.21058534]
[1759511517905,2.1572,4519.5,4518.9,3.21058534]
[1759511518206,3.2078,4519.9,4519.0,0.237]
[1759511518406,3.2078,4519.9,4519.6,0.39798]
[1759511518607,0.00224083,4520.2,4520.0,0.39794]
[1759511518918,3.24888074,4520.1,4519.7,0.39797]
[1759511519113,2.85094074,4520.1,4519.5,2.1899]
[1759511519310,2.1572,4519.9,4518.9,3.21058534]
[1759511519504,0.8696,4519.0,4517.9,3.2078]
[1759511519704,2.1572,4518.9,4518.0,2.1899]
[1759511520016,2.1572,4518.6,4518.3,0.39809]
[1759511520312,2.1572,4519.0,4518.4,0.237]
[1759511520515,2.1572,4519.3,4518.5,3.2078]
[1759511520714,3.42488,4518.5,4518.4,0.00204843]
[1759511521107,2.88270169,4518.5,4518.4,0.00204843]
[1759511521316,2.88270169,4518.5,4518.4,5.79783843]
[1759511521521,3.2078,4519.3,4518.4,8.20984843]
[1759511521815,2.84401763,4519.8,4519.7,2.1899]
[1759511522114,0.00224083,4520.2,4519.7,0.237]
[1759511522314,0.00224083,4520.2,4520.0,0.39794]
[1759511522617,0.00224083,4520.2,4520.1,5.6194]
[1759511523322,3.2078,4521.4,4520.3,2.1746]
[1759511523618,3.4448,4522.1,4521.6,0.3978]
[1759511523813,2.1917,4522.0,4521.6,0.237]
[1759511524315,2.1917,4522.0,4521.7,0.39779]
[1759511524316,2.19410782,4522.0,4521.7,0.39779]
[1759511524613,0.00240782,4522.0,4521.9,5.78018]
[1759511524819,7.82e-06,4522.0,4521.9,5.78018]
[1759511525209,7.82e-06,4522.0,4521.9,6.01718]
[1759511525815,2.1917,4524.1,4522.3,0.99437]
[1759511526016,2.1917,4524.1,4523.1,3.2078]
[1759511526215,2.87517834,4523.6,4523.1,3.4438]
[1759511526406,2.1917,4523.4,4523.1,3.2078]
[1759511526712,2.1917,4523.4,4523.2,0.236]
[1759511526915,2.1917,4523.3,4523.2,0.236]
[1759511527521,2.1917,4523.2,4523.0,0.236]
[1759511527710,2.87614056,4523.3,4523.0,0.236]
[1759511528017,5.11639836,4523.1,4523.0,0.236]
[1759511528213,5.11639836,4523.3,4523.0,0.236]
[1759511528414,2.1917,4523.3,4523.0,0.236]
[1759511528619,2.19342299,4523.4,4523.0,3.84147]
[1759511528820,2.8628837,4523.2,4523.0,3.4438]
[1759511529116,2.8628837,4523.3,4523.0,3.4438]
[1759511529307,0.00172299,4523.4,4523.2,2.57226]
[1759511529814,0.00172299,4523.4,4523.3,2.4106]
[1759511530014,0.00172299,4523.4,4523.0,3.60548]
[1759511530215,0.00172299,4523.4,4523.3,2.1746]
[1759511530720,2.1917,4523.3,4523.0,3.2078]
[1759511530917,0.00172299,4523.4,4523.2,2.1746]
[1759511531118,0.00172299,4523.4,4523.0,3.2078]
[1759511531324,2.19342299,4523.4,4523.3,0.236]
[1759511531514,0.00172299,4523.4,4523.3,2.4106]
[1759511531713,0.00172299,4523.4,4523.3,2.80826]
[1759511532119,0.00172299,4523.4,4523.3,2.4106]
[1759511532523,0.00172299,4523.4,4523.3,2.1746]
[1759511532817,0.00172299,4523.4,4523.3,2.4106]
[1759511533216,0.3975,4525.1,4523.3,2.4106]
[1759511533217,2.1917,4525.2,4524.0,0.8436]
[1759511533422,2.1917,4525.2,4524.1,6.01599]
[1759511533624,2.1917,4525.2,4524.1,5.3824]
[1759511533821,2.19840717,4524.2,4524.1,3.4438]
[1759511534011,5.12199941,4524.2,4524.1,3.2078]
[1759511534319,0.39762,4523.7,4522.8,2.1746]
[1759511534522,2.58934,4523.5,4522.8,2.1746]
[1759511534723,2.58934,4523.5,4522.0,1.24137]
[1759511534724,0.39771,4522.7,4522.0,3.2078]
[1759511534919,2.1917,4522.2,4521.4,5.3824]
[1759511535120,2.1917,4522.3,4521.7,0.236]
[1759511535415,3.33636363,4522.1,4521.7,2.1746]
[1759511535627,0.8633,4522.0,4521.4,3.2078]
[1759511535816,3.77259272,4522.0,4521.7,0.236]
[1759511536122,3.77259272,4522.0,4521.1,2.1746]
[1759511536123,2.1917,4521.9,4521.8,0.236]
[1759511536318,2.1917,4521.7,4520.9,3.2078]
[1759511536619,2.86527812,4521.7,4521.6,5.38465479]
[1759511536821,2.86527812,4521.7,4521.6,5.78246479]
[1759511537124,2.1917,4522.7,4521.6,5.38465479]
[1759511537324,0.236,4522.8,4522.5,3.2078]
[1759511537515,5.05697812,4522.6,4522.3,0.236]
[1759511537825,2.1917,4522.5,4522.3,0.236]
[1759511538017,2.1917,4522.4,4522.3,0.236]
[1759511538418,2.1917,4522.4,4521.8,3.2078]
[1759511538622,0.39773,4522.5,4521.9,0.236]
[1759511538823,2.1917,4521.9,4521.6,0.00225479]
[1759511539019,2.5895,4521.7,4521.6,0.00225479]
[1759511539423,5.41159685,4521.7,4521.6,0.00225479]
[1759511540222,2.1917,4520.6,4520.0,3.2078]
[1759511540532,2.84961207,4520.5,4520.1,0.214]
[1759511540918,2.84961207,4520.6,4520.2,2.57252]
[1759511541118,0.00245578,4520.6,4520.2,2.57416651]
[1759511541524,2.84961207,4520.5,4520.2,2.17624651]
[1759511541723,2.1917,4520.4,4520.2,0.00164651]
[1759511542230,0.00245578,4520.6,4520.3,0.39791]
[1759511542425,0.00245578,4520.6,4520.5,5.7803]
[1759511542617,0.00245578,4520.6,4520.5,11.6239]
[1759511542819,2.1917,4521.7,4521.1,0.39784]
[1759511543028,2.1917,4521.7,4521.2,5.6184]
[1759511543222,2.92908517,4521.6,4521.4,2.57242]
[1759511543422,2.92908517,4521.6,4521.2,3.84164]
[1759511543621,2.1917,4522.0,4521.3,0.39783]
[1759511543826,2.19400011,4522.0,4521.3,0.39783]
[1759511544024,2.19400011,4522.0,4521.2,5.6184]
[1759511544025,2.86328069,4521.9,4521.2,6.01624]
[1759511544232,2.86328069,4521.9,4521.2,5.3824]
[1759511544431,2.86328069,4521.9,4521.3,0.236]
[1759511544723,2.1917,4521.7,4521.3,0.236]
[1759511544929,2.1917,4521.7,4521.2,3.2078]
[1759511545121,2.1917,4521.7,4520.5,1.18255342]
[1759511545122,0.39789,4520.7,4520.5,0.5901086]
[1759511545319,0.39787,4520.9,4520.4,0.236]
[1759511545523,0.236,4521.3,4520.6,5.78029]
[1759511545737,2.81676537,4520.8,4520.2,0.59175511]
[1759511545933,2.1917,4520.3,4520.2,0.00164651]
[1759511546329,5.00846537,4520.3,4520.2,0.00164651]
[1759511546728,5.00846537,4520.3,4520.2,0.39957651]
[1759511547035,2.0632,4521.2,4520.9,0.39786]
[1759511547233,3.2078,4521.7,4520.7,3.2078]
[1759511547234,0.236,4521.4,4520.7,3.2078]
[1759511547527,2.0632,4520.8,4520.2,3.20944651]
[1759511547729,2.0632,4521.1,4520.2,3.44544651]
[1759511547927,2.0632,4521.1,4520.5,0.3979]
[1759511548122,2.83753237,4520.9,4520.6,0.39789]
[1759511548328,3.2078,4521.7,4520.8,2.0654]
[1759511548526,5.271,4521.7,4521.4,0.39782]
[1759511548732,2.8991,4521.5,4520.9,0.5901086]
[1759511549034,0.8359,4521.5,4521.2,0.39784]
[1759511549228,1.10160011,4522.0,4521.5,0.39781]
[1759511549432,2.0632,4521.9,4521.5,0.39781]
[1759511549634,2.90593392,4521.9,4521.5,0.39781]
[1759511549837,0.3978,4521.7,4521.2,3.60564]
[1759511550032,2.0632,4521.4,4521.3,0.236]
[1759511550241,2.0632,4521.4,4520.8,0.8261086]
[1759511550427,0.39785,4521.1,4520.8,0.8261086]
[1759511550633,2.90593392,4521.4,4520.5,0.5901086]
[1759511550634,5.507,4521.2,4520.5,0.5901086]
[1759511550936,2.46112,4520.3,4520.2,0.00164651]
[1759511551132,2.0632,4520.3,4520.2,0.00164651]
[1759511552836,4.98381252,4520.3,4520.2,0.00164651]
[1759511554539,4.98381252,4520.3,4520.2,0.39957651]
[1759511555044,2.92061252,4520.3,4520.2,0.00164651]
[1759511555242,2.9925,4521.0,4520.2,2.17764651]
[1759511555641,2.9214277,4520.9,4520.7,0.39788]
[1759511555836,2.1566,4520.8,4520.2,5.38544651]
[1759511556042,2.1566,4520.8,4520.3,0.39792]
[1759511556238,0.236,4521.0,4520.3,2.176]
[1759511556432,0.39789,4520.7,4520.2,3.79955511]
[1759511556637,2.1566,4520.6,4520.3,0.236]
[1759511556837,2.1566,4520.8,4520.3,0.236]
[1759511557038,2.1566,4520.8,4520.2,3.20944651]
[1759511557039,2.1566,4520.3,4520.2,0.00164651]
[1759511557243,2.3926,4520.3,4520.2,0.00164651]
[1759511557540,5.21292798,4520.3,4520.2,0.00164651]
[1759511557736,4.97692798,4520.3,4520.2,0.00164651]
[1759511558045,3.2078,4520.6,4520.2,0.23764651]
[1759511558236,0.39792,4520.4,4520.2,0.23764651]
[1759511558444,2.1566,4520.3,4520.2,0.00164651]
[1759511559245,5.3644,4520.6,4520.2,2.57557651]
[1759511559437,5.3644,4520.6,4520.2,2.17764651]
[1759511559438,5.76229,4520.6,4520.2,2.17764651]
[1759511559638,0.3979,4520.5,4520.2,2.17764651]
[1759511559833,5.3644,4520.6,4520.2,2.17764651]
[1759511560033,0.39791,4520.4,4520.2,2.17764651]
[1759511560239,0.39791,4520.4,4520.2,2.76775511]
[1759511560440,3.2078,4521.1,4520.3,2.176]
[1759511560637,2.1566,4521.2,4520.3,3.0021086]
[1759511560841,2.1566,4521.9,4521.4,0.39782]
[1759511561143,0.00230011,4522.0,4521.9,2.176]
[1759511561344,0.00230011,4522.0,4521.9,2.412]
[1759511561745,0.00230011,4522.0,4521.8,0.78830946]
[1759511561940,0.00230011,4522.0,4521.9,0.236]
[1759511562154,2.15890011,4522.0,4521.9,0.236]
[1759511562448,2.99320011,4522.0,4521.9,0.78830946]
[1759511562644,2.55438,4521.9,4521.8,0.59263806]
[1759511562844,2.1566,4521.6,4521.4,0.78830946]
[1759511563049,2.55441,4521.6,4521.4,0.78830946]
[1759511563245,4.04440011,4522.0,4521.5,0.78830946]
[1759511563447,0.00230011,4522.0,4521.8,0.59319086]
[1759511563646,0.00230011,4522.0,4521.9,0.82919086]
[1759511563954,0.00230011,4522.0,4521.8,0.78830946]
[1759511564152,0.00230011,4522.0,4521.9,0.236]
[1759511564458,0.00230011,4522.0,4521.9,2.412]
[1759511564951,0.00230011,4522.0,4521.9,0.236]
[1759511565152,2.15890011,4522.0,4521.9,0.236]
[1759511565551,0.00230011,4522.0,4521.9,0.236]
[1759511565853,0.00230011,4522.0,4521.9,2.176]
[1759511566054,0.00230011,4522.0,4521.9,7.412]
[1759511567052,5.3644,4523.2,4521.9,5.236]
[1759511567351,5.3644,4523.2,4522.8,0.3977]
[1759511567555,5.3644,4523.2,4522.9,0.236]
[1759511567958,2.1566,4522.8,4522.7,0.79129126]
[1759511568148,0.00251528,4522.8,4522.7,1.02729126]
[1759511568451,0.00251528,4522.8,4522.7,2.412]
[1759511568654,0.00251528,4522.8,4522.7,1.0270182]
[1759511568848,0.00251528,4522.8,4522.7,3.2030182]
[1759511569554,0.00251528,4522.8,4522.7,7.412]
[1759511569751,3.2078,4523.7,4523.5,0.39763]
[1759511569950,3.2078,4523.7,4523.6,2.412]
[1759511570458,3.2078,4523.7,4523.6,0.236]
[1759511570653,0.00167138,4523.7,4523.6,0.63615978]
[1759511570954,5.03250618,4523.7,4523.6,0.23853978]
[1759511571161,2.1566,4523.3,4523.1,0.236]
[1759511571458,2.1566,4523.2,4523.1,0.236]
[1759511572159,2.1566,4523.2,4523.1,0.23843108]
[1759511573352,8.18299575,4523.2,4523.1,0.00243108]
[1759511574758,13.18299575,4523.2,4523.1,0.00243108]
[1759511575160,5.3644,4523.2,4523.1,0.00243108]
[1759511575559,2.1566,4523.2,4523.1,0.00243108]
[1759511576664,2.1566,4523.5,4523.2,0.39766]
[1759511576958,2.1566,4523.5,4523.1,2.57610108]
[1759511577157,0.39764,4523.5,4523.1,2.24843108]
[1759511577358,2.1566,4523.4,4523.1,0.07243108]
[1759511577666,2.1566,4523.2,4523.1,0.00243108]
[1759511578859,0.99419,4523.1,4522.1,0.79065137]
[1759511579066,2.1566,4522.7,4521.9,0.79065137]
[1759511579366,0.8343,4522.5,4522.0,0.07]
[1759511579568,2.1566,4522.1,4522.0,0.07]
[1759511579769,0.39777,4522.0,4521.8,3.2078]
[1759511579969,2.1566,4521.9,4521.8,3.21003633]
[1759511580166,5.03435009,4521.9,4521.8,3.21003633]
[1759511580461,5.3644,4523.1,4522.5,0.39772]
[1759511580666,5.3644,4523.1,4522.5,0.07]
[1759511580862,5.00735049,4522.9,4522.7,0.39771]
[1759511581065,3.2078,4523.1,4522.5,0.46772]
[1759511581269,0.8343,4523.0,4522.6,0.07]
[1759511581462,2.1566,4522.9,4522.6,0.07]
[1759511581766,0.07,4523.3,4522.6,0.07]
[1759511581960,2.1566,4523.2,4522.6,0.07]
[1759511582161,2.1566,4523.2,4523.0,2.58698]
[1759511582468,2.86744701,4523.4,4523.1,2.1893]
[1759511582657,2.1583,4523.6,4523.2,0.39766]
[1759511582859,1.26615,4523.5,4523.1,0.07]
[1759511583069,0.8685,4523.5,4523.1,0.07]
[1759511583365,2.1583,4523.2,4523.1,0.07]
[1759511584069,2.1583,4523.5,4523.4,0.39765]
[1759511584263,3.20947138,4523.7,4523.3,0.39765]
[1759511584264,5.36777138,4523.7,4523.3,0.39765]
[1759511584465,5.36777138,4523.7,4523.4,2.1893]
[1759511584668,5.36777138,4523.7,4523.5,2.58693]
[1759511584973,5.36777138,4523.7,4523.6,0.07]
[1759511585867,5.36777138,4523.7,4523.3,0.79065137]
[1759511586165,2.1583,4523.6,4523.3,1.18830137]
[1759511586367,2.1583,4523.6,4523.3,0.79065137]
[1759511586368,2.1583,4523.4,4523.3,0.79065137]
[1759511586564,2.1583,4523.4,4523.3,0.07]
[1759511586872,2.1583,4523.4,4523.0,0.79065137]
[1759511587076,2.1583,4522.9,4522.8,0.79065137]
[1759511587261,2.1583,4522.9,4522.8,0.79103618]
[1759511587465,0.8685,4523.0,4522.6,1.18597706]
[1759511587466,2.1583,4522.7,4522.6,0.07]
[1759511588370,3.60547,4523.2,4522.6,0.07]
[1759511588571,3.2078,4523.2,4522.8,0.39769]
[1759511588770,3.0268,4523.5,4522.7,2.1893]
[1759511588963,2.1583,4523.0,4522.8,0.07]
[1759511589274,2.89537103,4523.3,4523.1,2.1893]
[1759511589472,0.8685,4523.5,4523.2,0.07]
[1759511589968,2.1583,4523.4,4523.2,0.07]
[1759511590169,3.20947138,4523.7,4523.3,2.1893]
[1759511590476,2.88369271,4523.6,4523.5,2.9933]
[1759511590675,0.00167138,4523.7,4523.6,2.58693]
[1759511590967,2.15997138,4523.7,4523.6,0.07]
[1759511591171,0.39764,4523.5,4523.4,1.58573896]
[1759511591362,0.00167138,4523.7,4523.5,2.1893]
[1759511591562,2.1583,4523.5,4523.3,1.58573896]
[1759511591765,2.1583,4523.5,4523.2,4.79353896]
[1759511591972,2.1583,4523.5,4523.2,5.19119896]
[1759511592167,0.8685,4523.5,4523.2,4.79353896]
[1759511592369,2.1583,4523.2,4523.1,1.58573896]
[1759511592568,2.1583,4523.2,4523.1,0.07]
[1759511592878,2.1583,4522.9,4522.8,1.58573896]
[1759511593172,2.1583,4523.0,4522.7,6.98283896]
[1759511593365,0.39769,4523.0,4522.8,1.58573896]
[1759511593569,2.556,4522.8,4522.7,3.2078]
[1759511593767,2.556,4522.8,4522.7,3.2778]
[1759511593965,1.86262,4523.5,4522.9,0.39769]
[1759511593966,3.25284433,4523.4,4522.9,0.39769]
[1759511594165,3.2078,4523.6,4522.7,4.79353896]
[1759511594372,0.39768,4523.1,4522.8,0.07]
[1759511594571,2.1583,4523.2,4522.8,0.4677]
[1759511594771,2.1583,4523.2,4523.0,0.39768]
[1759511594979,2.1583,4523.2,4523.1,0.07]
[1759511595771,0.39766,4523.3,4523.1,0.07]
[1759511595974,2.1583,4523.2,4523.1,0.07]
[1759511596370,2.1583,4523.3,4523.0,0.39768]
[1759511596571,0.8685,4523.5,4522.7,4.79353896]
[1759511596572,2.1583,4522.9,4522.7,4.79353896]
[1759511596777,2.1583,4522.9,4522.8,0.07]
[1759511597472,0.8685,4523.0,4522.7,0.39771]
[1759511597671,2.1583,4522.9,4522.8,0.07]
[1759511597970,2.55604,4522.4,4522.1,1.58573896]
[1759511598172,2.1583,4522.3,4522.1,1.58573896]
[1759511598378,2.89664316,4522.3,4522.2,0.07]
[1759511598775,0.8685,4523.0,4522.4,0.99435]
[1759511599074,2.1583,4523.0,4522.7,0.39771]
[1759511599276,2.1583,4523.0,4522.8,0.07]
[1759511599574,2.55599,4523.0,4522.8,2.2593]
[1759511599878,2.1583,4522.9,4522.8,0.07]
[1759511600377,2.556,4522.8,4522.7,3.2078]
[1759511600571,2.556,4522.8,4522.7,3.2778]
[1759511600774,2.1583,4523.0,4522.7,3.2778]
[1759511600970,2.1583,4523.4,4523.0,0.39768]
[1759511601168,2.1583,4523.4,4523.1,2.2593]
[1759511601669,2.1583,4523.4,4523.2,2.1893]
[1759511601972,2.1583,4523.6,4523.3,2.1893]
[1759511602173,2.1583,4523.5,4523.4,0.07]
[1759511602374,0.00167138,4523.7,4523.5,2.58694]
[1759511602575,0.00167138,4523.7,4523.6,2.1893]
[1759511602777,0.00167138,4523.7,4523.6,3.77680285]
[1759511602978,0.00167138,4523.7,4523.6,7.1893]
[1759511603482,0.00503579,4524.2,4524.1,2.52022333]
[1759511603681,0.00503579,4524.2,4524.1,10.79802333]
[1759511604279,0.00503579,4524.2,4524.1,5.3971]
[1759511604486,0.00694052,4524.2,4524.1,5.4671]
[1759511604687,0.00694052,4524.2,4524.1,10.4671]
[1759511604987,3.2078,4525.2,4525.1,0.3975]
[1759511605177,2.1583,4525.5,4525.3,0.39748]
[1759511605382,2.1583,4525.5,4525.4,0.07]
[1759511605876,3.42427,4525.5,4525.4,0.07]
[1759511606081,3.02840338,4525.5,4525.4,0.07286393]
[1759511606279,3.02840338,4525.5,4525.4,1.77825672]
[1759511606280,2.15990338,4525.5,4525.4,1.77825672]
[1759511606479,2.15990338,4525.5,4525.4,0.07286393]
[1759511607684,2.98630338,4525.5,4525.4,0.07286393]
[1759511608381,2.98630338,4525.5,4525.4,0.00286393]
[1759511608587,2.98630338,4525.5,4525.4,0.07286393]
[1759511608784,0.00160338,4525.5,4525.4,0.07286393]
[1759511608986,0.00160338,4525.5,4525.4,2.09496393]
[1759511609787,0.00160338,4525.5,4525.4,3.28117375]
[1759511610086,0.00595479,4525.6,4525.5,3.25896]
[1759511610383,0.00595479,4525.6,4525.5,4.51339214]
[1759511611181,0.0075258,4525.6,4525.5,3.32896]
[1759511611586,0.0075258,4525.6,4525.5,2.0221]
[1759511611779,2.008,4525.5,4525.4,0.00286393]
[1759511611980,2.008,4525.5,4525.4,0.07286393]
[1759511612491,2.008,4525.5,4525.4,0.00286393]
[1759511612690,2.008,4525.5,4525.4,0.07286393]
[1759511613085,0.0075258,4525.6,4525.5,2.0106]
[1759511613290,2.1366,4525.5,4525.4,0.07286393]
[1759511613686,2.9391,4525.5,4525.4,0.00286393]
[1759511613990,2.9391,4525.5,4525.4,0.07286393]
[1759511615188,2.1366,4525.5,4525.4,0.07286393]
[1759511615382,2.1366,4525.5,4525.4,2.08346393]
[1759511616091,0.0075258,4525.6,4525.5,2.40806]
[1759511616484,0.0075258,4525.6,4525.5,3.21436]
[1759511616679,2.1441258,4525.6,4525.4,0.00286393]
[1759511616883,2.1366,4525.5,4525.4,0.00286393]
[1759511617087,2.1366,4525.5,4525.4,0.07286393]
[1759511617783,2.9391,4525.5,4525.4,0.07286393]
[1759511617984,2.1366,4525.5,4525.4,0.07286393]
[1759511618185,0.0075258,4525.6,4525.5,0.39746]
[1759511618382,0.0075258,4525.6,4525.4,0.00286393]
[1759511618590,2.9391,4525.5,4525.4,0.00286393]
[1759511618793,0.0075258,4525.6,4525.5,3.21436]
[1759511619088,3.2078,4526.8,4526.6,0.39737]
[1759511619292,3.2078,4526.8,4526.7,0.07]
[1759511620003,3.21018785,4526.8,4526.7,0.07]
[1759511620693,0.00238785,4526.8,4526.7,2.0806]
[1759511622192,0.00238785,4526.8,4526.7,2.0106]
[1759511622193,2.13898785,4526.8,4526.7,2.0106]
[1759511622399,0.00238785,4526.8,4526.7,2.0806]
[1759511622585,0.00238785,4526.8,4526.7,2.0106]
[1759511622791,0.39731,4527.3,4526.9,0.39734]
[1759511622996,0.39733,4527.1,4527.0,0.07]
[1759511623192,2.1366,4527.1,4527.0,0.07]
[1759511623397,2.1366,4527.1,4527.0,2.0806]
[1759511623693,5.3444,4527.4,4527.1,0.39732]
[1759511623895,5.34608255,4527.4,4527.2,2.0806]
[1759511624089,3.20948255,4527.4,4527.3,2.4079]
[1759511624294,0.00168255,4527.4,4527.3,2.0106]
[1759511625095,0.022,4527.9,4527.7,2.0106]
[1759511625295,0.022,4527.9,4527.8,2.0806]
[1759511625987,0.02429752,4527.9,4527.8,2.0806]
[1759511626297,0.02429752,4527.9,4527.8,2.47786]
[1759511626689,0.02429752,4527.9,4527.8,2.0806]
[1759511626896,2.1366,4527.8,4527.6,2.0106]
[1759511627103,0.39728,4527.6,4527.5,3.2078]
[1759511627302,2.1366,4527.4,4527.3,0.1621918]
[1759511627494,2.1366,4527.4,4527.3,0.07]
[1759511627802,0.3973,4527.4,4527.3,0.07]
[1759511627989,0.3973,4527.4,4527.0,5.2184]
[1759511628191,2.1366,4527.7,4527.0,3.2078]
[1759511628390,0.39731,4527.2,4527.1,0.07]
[1759511628692,5.74171,4527.2,4527.1,0.07]
[1759511628893,2.1366,4527.2,4527.1,2.0806]
[1759511629094,2.53398,4526.4,4526.1,0.78846482]
[1759511629300,2.1366,4526.9,4526.2,2.0806]
[1759511629495,2.1366,4526.9,4526.8,2.0106]
[1759511629704,2.1366,4526.9,4526.8,2.0806]
[1759511629903,2.1366,4526.9,4526.8,0.07]
[1759511630497,2.1366,4527.4,4526.8,2.0806]
[1759511630705,2.1366,4527.4,4526.8,0.07]
[1759511630905,4.95307357,4527.4,4526.8,0.07]
[1759511631797,2.1366,4527.3,4527.0,0.39733]
[1759511632010,2.1366,4527.2,4527.1,0.07]
[1759511633003,4.0103,4527.5,4526.8,1.18580482]
[1759511633200,4.0103,4527.5,4527.1,0.07]
[1759511633398,2.87249834,4527.4,4527.1,0.07]
[1759511633598,2.1366,4527.3,4527.1,0.07]
[1759511633995,10.05163884,4527.2,4526.8,0.78846482]
[1759511634306,0.8025,4527.0,4526.6,0.85846482]
[1759511634604,5.05163884,4526.9,4526.6,0.85846482]
[1759511634905,5.05163884,4526.9,4526.6,0.07]
[1759511635295,2.9391,4526.5,4526.3,0.85846482]
[1759511635497,2.1366,4526.4,4526.0,0.78846482]
[1759511635710,2.9391,4526.0,4525.9,0.78846482]
[1759511635998,2.9391,4526.0,4525.9,0.85846482]
[1759511636201,2.9391,4526.0,4525.9,0.78846482]
[1759511637407,0.8025,4525.5,4525.4,0.00286393]
[1759511637604,2.9391,4525.5,4525.4,0.00286393]
[1759511637807,10.77215833,4525.5,4525.4,0.00286393]
[1759511637999,0.8025,4525.0,4524.6,0.78846482]
[1759511638199,2.1366,4524.9,4524.7,2.40813]
[1759511638404,2.1366,4524.9,4524.8,2.0106]
[1759511638606,2.1366,4525.4,4524.7,0.39753]
[1759511638801,0.8025,4525.0,4524.6,0.85846482]
[1759511639104,4.96279667,4524.9,4524.6,0.0718609]
[1759511639302,2.1366,4524.9,4524.6,0.0718609]
[1759511639520,2.82619667,4524.8,4524.6,0.0718609]
[1759511639706,2.1366,4524.7,4524.6,0.0018609]
[1759511639915,2.13859966,4524.7,4524.6,0.0018609]
[1759511640108,4.96856026,4524.7,4524.6,0.0018609]
[1759511640407,0.00199966,4524.7,4524.6,2.0824609]
[1759511641308,3.2078,4525.2,4525.1,0.3975]
[1759511641504,2.1366,4525.9,4525.6,0.39745]
[1759511641704,2.1366,4525.9,4525.7,0.39744]
[1759511641898,2.1366,4526.1,4525.8,2.0278]
[1759511642102,2.1366,4526.1,4525.9,0.39743]
[1759511642302,3.2078,4526.8,4526.1,0.39741]
[1759511642303,1.9791,4526.4,4526.1,0.39741]
[1759511642500,1.98193811,4526.4,4526.0,0.79031478]
[1759511642707,1.9791,4525.3,4524.8,1.18443214]
[1759511642908,1.9791,4525.3,4524.4,2.0278]
[1759511642909,1.9791,4524.9,4524.4,1.25443214]
[1759511643103,1.9791,4524.9,4524.4,0.07]
[1759511643409,1.9791,4524.7,4524.4,0.07]
[1759511643611,2.0491,4524.7,4524.0,1.18443214]